Cogmind - Beta 17 @@@ ROGUE MODE // 2026.07.16 @ 20:56:06 Player: Marienkos Result: Destroyed by DZ-HNV(R) with Subdweller Machine Gun Performance ------------- Evolutions (0) 0 Regions Visited (3) 600 Robots Destroyed (10) 50 Value Destroyed (211) 211 Prototype IDs (0) 0 Alien Tech Used (0) 0 Bonus (0) 0 TOTAL SCORE: 861 Bonus ------- None Cogmind --------- Core Integrity 0/250 Matter 300/300 Energy 100/100 System Corruption 0% Temperature Cool (0) Movement Core (250) Ox4 Location -10/Subcaves Parts ------- > --- POWER (1) -------- (None) > --- PROPULSION (2) --- (None) > --- UTILITY (2) ------ Small Storage Unit Terrain Scan Processor > --- WEAPON (2) ------- Subdweller Machine Gun Heavy Battle Rifle > --- INVENTORY (8) ---- Aluminum Leg Light Armor Plating EM Pulse Gun Light Assault Rifle Light Assault Rifle Makeshift Spear Peak State ------------ > --- POWER ------------ Light Ion Engine > --- PROPULSION ------- Wheel Wheel > --- UTILITY ---------- Small Storage Unit Terrain Scan Processor > --- WEAPON ----------- Light Assault Rifle Heavy Battle Rifle > --- INVENTORY -------- Aluminum Leg EM Pulse Gun Light Assault Rifle [Rating: 11] Favorites ----------- Power Light Ion Engine Engine Light Ion Engine Propulsion Wheel Leg Aluminum Leg Wheel Wheel Flight Unit Flight Unit Utility Terrain Scan Processor Storage Small Storage Unit Processor Terrain Scan Processor Weapon Light Assault Rifle Energy Gun Medium Laser Ballistic Gun Light Assault Rifle Launcher Grenade Launcher Build | -11 -10 -10 -10 ------- Run | Yrd Mat Min Sub Slots Evolved . | . . . . Power . | . . . . Propulsion . | . . . . Utility . | . . . . Weapon . | . . . . Parts Attached 22 | 5 9 7 1 Power 4 | 1 2 1 . Engine 4 | 1 2 1 . Core . | . . . . Reactor . | . . . . Propulsion 10 | 2 4 4 . Treads . | . . . . Leg 3 | . . 3 . Wheel 4 | 2 1 1 . Hover . | . . . . Flight 3 | . 3 . . Utility 2 | . 1 1 . Device . | . . . . Storage 1 | . . 1 . Processor 1 | . 1 . . Hackware . | . . . . Protection . | . . . . Artifact . | . . . . Weapon 6 | 2 2 1 1 Energy Gun 1 | 1 . . . Energy Cannon . | . . . . Ballistic Gun 4 | 1 1 1 1 Ballistic Cannon . | . . . . Launcher 1 | . 1 . . Special Weapon . | . . . . Impact Weapon . | . . . . Slashing Weapon . | . . . . Piercing Weapon . | . . . . Special Melee Weapon . | . . . . Unidentified Prototypes . | . . . . Parts Lost 7 | . 2 2 3 Power 2 | . . 1 1 Propulsion 4 | . 1 1 2 Utility . | . . . . Weapon 1 | . 1 . . Highest Loss Streak 2 | . 1 2 2 To Critical Strikes . | . . . . Average Backups 4 | . 4 3 4 Power . | . 1 . . Propulsion 1 | . 1 1 1 Utility . | . . . 1 Weapon 2 | . 1 1 2 Tool/Special . | . . . . Unused Backups 5 | . 2 . 3 Power . | . . . . Propulsion 1 | . 1 . . Utility 1 | . . . 1 Weapon 3 | . 1 . 2 Tool/Special . | . . . . Average Slot Usage (%) 83 | . 70 78 89 Engine 12 | . 14 12 11 Wheel 17 | . 15 14 20 Flight 3 | . 11 7 . Storage 9 | . . 4 14 Processor 11 | . . 14 14 Ballistic Gun 24 | . 14 23 28 Launcher 1 | . 8 . . Peak Build Rating 11 | 5 8 11 11 Average Rating 8 | 4 5 8 10 On Entrance 5 | . 5 7 11 Avg Prop Armor Cover (%) . | . . . . Naked Turns . | . . . . Heaviest Build 13 | 6 11 13 13 Greatest Support 20 | 20 20 20 20 Greatest Overweight (x) 4 | . 2 . 4 Average Overweight (x) . | . . . . Largest Inventory Capacity 8 | 5 5 8 8 Average Capacity 6 | 5 5 5 8 Most Carried 7 | 2 5 5 7 Average Carried 4 | . 4 3 4 Final Capacity 8 | 5 5 8 8 Final Carried 6 | 2 4 4 6 Class Distribution -------------------- 90% | Mutant 9% | Scavenger-Mutant Dominant Class ---------------- Mutant | -10/Materials Mutant | -10/Mines Mutant | -10/Subcaves Resources | -11 -10 -10 -10 ----------- Run | Yrd Mat Min Sub Matter Collected 480 | 192 120 139 29 Remotely . | . . . . Salvage Created 226 | . 93 79 54 Parts 25 | . 13 6 6 Haulers Intercepted . | . . . . Recyclers Shooed 1 | . 1 . . Parts Field Recycled . | . . . . Retrieved Matter . | . . . . Parts Self-Destructed 8 | . . . 8 Prevented . | . . . . Parts Restored . | . . . . Kills | -11 -10 -10 -10 ------- Run | Yrd Mat Min Sub Combat Hostiles Destroyed 6 | . 3 2 1 Guns 6 | . 3 2 1 Classes Destroyed 6 | . 4 1 1 Worker 1 | . 1 . . Tunneler 1 | . 1 . . Watcher 2 | . 2 . . Swarmer 3 | . 3 . . Grunt 2 | . . 2 . Subdweller 1 | . . . 1 Best Kill Streak 4 | . 4 1 1 Combat Bots Only 3 | . 3 1 1 Max Kills in Single Turn 2 | . 2 1 1 Gunslinging . | . . . . Exploded . | . . . . Melee . | . . . . Uniques/NPCs Destroyed . | . . . . Combat | -11 -10 -10 -10 -------- Run | Yrd Mat Min Sub Hostile Shots Fired 80 | . 35 23 22 Missed 31 | . 13 10 8 Hits 49 | . 22 13 14 Projectile 49 | . 22 13 14 Critical Strikes 1 | . . 1 . Damage Taken 798 | . 258 194 346 Core 269 | . 71 72 126 Absorbed by Shields . | . . . . Core Remaining (%) 100 | 100 . . . Volleys Fired 34 | . 8 24 2 Largest 2 | . 2 1 2 Hottest 70 | . 70 20 53 Shots Fired 44 | . 16 24 4 Gun 42 | . 14 24 4 Cannon . | . . . . Launcher 2 | . 2 . . Special . | . . . . Kinetic 36 | . 8 24 4 Thermal 6 | . 6 . . Explosive 2 | . 2 . . Electromagnetic . | . . . . Robot Hit Streak 9 | . 6 7 9 Robot Miss Streak 1 | . 1 1 . Penetration Max . | . . . . Secondary Targets . | . . . . Shots Hit Robots 33 | . 10 19 4 Core Hits 19 | . 10 6 3 Critical Kills 1 | . . 1 . Critical Parts Destroyed . | . . . . Critical Strikes 1 | . . 1 . Destroy 1 | . . 1 . Melee Attacks . | . . . . Impact . | . . . . Slashing . | . . . . Piercing . | . . . . Sneak Attacks . | . . . . Combat Hostiles . | . . . . Follow-up Attacks . | . . . . Damage Inflicted 408 | . 213 139 56 Guns 268 | . 76 139 53 Cannons . | . . . . Explosions 137 | . 137 . . Melee . | . . . . Ramming 3 | . . . 3 Kinetic 244 | . 52 139 53 Thermal 24 | . 24 . . Explosive 137 | . 137 . . Electromagnetic . | . . . . Impact . | . . . . Slashing . | . . . . Piercing . | . . . . Highest Corruption . | . . . . Average Corruption . | . . . . Corruption Purged . | . . . . Corruption Blocked . | . . . . Overload Shots . | . . . . Overflow Damage 14 | . 14 . . Projectiles . | . . . . Explosions 14 | . 14 . . Melee . | . . . . Knockbacks . | . . . . Impact . | . . . . Kinetic . | . . . . Secondary . | . . . . Self-Inflicted Damage 50 | . 49 . 1 Shots 2 | . 2 . . Rammed 1 | . . . 1 Targets Rammed 1 | . . . 1 Kicked . | . . . . Crushed . | . . . . Highest Temperature 60 | . 60 21 . Average Temperature 15 | . 26 5 . Received Heat Transfer 129 | . . 129 . Siege Activations . | . . . . Martial Activations . | . . . . Shielding Activations . | . . . . Robots Disrupted . | . . . . Combat Hostiles . | . . . . Robots Corrupted . | . . . . Combat Hostiles . | . . . . Parts Fried . | . . . . Impact Corruptions . | . . . . Robots Melted . | . . . . Combat Hostiles . | . . . . Parts Melted . | . . . . Heat Transferred 74 | . 74 . . Parts Sabotaged . | . . . . Parts Stolen . | . . . . Parts Stripped . | . . . . Power Chain Reactions . | . . . . Alert | -11 -10 -10 -10 ------- Run | Yrd Mat Min Sub Maximum Alert Level . | . . . . Low Security (%) 100 | 100 100 100 . Level 1 . | . . . . Level 2 . | . . . . Level 3 . | . . . . Level 4 . | . . . . Level 5 . | . . . . High Security . | . . . . Max Security . | . . . . Peak Influence 67 | . 67 30 . Initial 5 | . . 5 . Average 19 | . 41 4 . Influence Increases 185 | . 135 50 . Destroy 0b10 Robot/C 100 | . 60 40 . Destroy 0b10 Robot/NC 20 | . 20 . . Destroy Leader 24 | . 14 10 . Disable Machine 30 | . 30 . . Destroy Structure 11 | . 11 . . Influence Decreases 185 | . 120 65 . Entered New Map 10 | . . 10 . Time Decay 145 | . 100 45 . Lost Part 30 | . 20 10 . Squads Dispatched . | . . . . Investigation . | . . . . Extermination . | . . . . Reinforcement . | . . . . Assault . | . . . . Garrison . | . . . . Intercept . | . . . . Searches Triggered . | . . . . Construction Impeded . | . . . . Haulers Reinforced . | . . . . Active Scanning Responses . | . . . . Cargo Convoy Interrupts . | . . . . Stealth | -11 -10 -10 -10 --------- Run | Yrd Mat Min Sub Distress Signals . | . . . . Communications Jammed . | . . . . Distress Signals . | . . . . Times Spotted 12 | . 8 2 2 Peak Tracking Total 3 | . 3 2 1 Tactical Retreats . | . . . . Traps | -11 -10 -10 -10 ------- Run | Yrd Mat Min Sub Traps Triggered 2 | . 1 . 1 Indirectly . | . . . . Trap Hack Attempts . | . . . . Triggered . | . . . . Disarmed . | . . . . Reprogrammed . | . . . . Reused . | . . . . Traps Extracted . | . . . . Installed . | . . . . Triggered . | . . . . Machines | -11 -10 -10 -10 ---------- Run | Yrd Mat Min Sub Machines Disabled 2 | . 2 . . Max in Single Turn 2 | . 2 . . Machines Repaired . | . . . . Machines Dismantled . | . . . . Machines Sabotaged . | . . . . Overloaded Fab Kills . | . . . . Hacking | -11 -10 -10 -10 --------- Run | Yrd Mat Min Sub Machines Accessed 3 | . 2 . 1 Terminals 2 | . 2 . . Fabricators . | . . . . Repair Stations . | . . . . Recycling Units . | . . . . Scanalyzers . | . . . . Garrison Access . | . . . . Total Hacks 8 | . 4 . 4 Successful 4 | . . . 4 Failed 4 | . 4 . . Catastrophic 1 | . 1 . . Database Lockouts . | . . . . Manual 3 | . 3 . . Terminals 4 | . 4 . . Fabricators . | . . . . Repair Stations . | . . . . Recycling Units . | . . . . Scanalyzers . | . . . . Garrison Access . | . . . . Terminal Hacks 4 | . . . 4 Record 4 | . . . 4 Fabricator Hacks . | . . . . Repair Station Hacks . | . . . . Recycling Unit Hacks . | . . . . Scanalyzer . | . . . . Garrison Access Hacks . | . . . . Unauthorized Hacks . | . . . . Terminals . | . . . . Fabricators . | . . . . Repair Stations . | . . . . Recycling Units . | . . . . Scanalyzers . | . . . . Garrison Access . | . . . . Data Cores Recovered . | . . . . Used . | . . . . Hacking Detections 2 | . 2 . . Full Trace Events . | . . . . Feedback Events . | . . . . Feedback Blocked . | . . . . Robot Schematics Acquired . | . . . . Robots Built . | . . . . Authchips . | . . . . Time . | . . . . Total Robot Build Rating . | . . . . Part Schematics Acquired . | . . . . Parts Built . | . . . . Authchips . | . . . . Time . | . . . . Total Part Build Rating . | . . . . Part Studies Acquired . | . . . . Parts Repaired . | . . . . Time . | . . . . Parts Recycled . | . . . . Recycled Matter . | . . . . Retrieved Matter . | . . . . Retrieved Components . | . . . . Parts Scanalyzed . | . . . . Part Schematics Acquired . | . . . . Parts Damaged . | . . . . Bothacking | -11 -10 -10 -10 ------------ Run | Yrd Mat Min Sub Used RIF Installer . | . . . . Robots Hacked . | . . . . Non-combat . | . . . . Combat . | . . . . Robot Hacks Applied . | . . . . Relay Couplers Released . | . . . . Fabnet Peak Effective % . | . . . . Robots Rewired . | . . . . Allies Hacked . | . . . . Hacks Repelled . | . . . . Allies | -11 -10 -10 -10 -------- Run | Yrd Mat Min Sub Total Allies . | . . . . Largest Group . | . . . . Highest-Rated Group . | . . . . Highest-Rated Ally . | . . . . Total Orders . | . . . . Ally Attacks . | . . . . Total Damage . | . . . . Kills . | . . . . Allies Corrupted . | . . . . Allies Melted . | . . . . Intel | -11 -10 -10 -10 ------- Run | Yrd Mat Min Sub Active Infowar (turns) . | . . . . Robot Analysis Total . | . . . . Derelict Logs Recovered 2 | . . 1 1 Drone Launches . | . . . . Drone Recoveries . | . . . . Exploration | -11 -10 -10 -10 ------------- Run | Yrd Mat Min Sub Turns Passed 1226 | 53 208 258 707 Spaces Moved 1277 | 55 253 258 711 Core 75 | 1 . . 74 Treads . | . . . . Legs 4 | . . 4 . Wheels 1004 | 54 105 208 637 Hover . | . . . . Flight 194 | . 148 46 . Fastest Speed 37 | 50 37 37 80 Average Speed 85 | 79 65 73 97 Slowest Speed 250 | 80 200 120 250 Overloaded Moves . | . . . . Propulsion Burnouts . | . . . . Robots Hopped . | . . . . Potential Cave-ins . | . . . . Cave-ins Triggered . | . . . . Exploration Rate (%) 33 | 4 37 57 36 Regions Visited 3 Branch Regions 2 Pre-discovered Areas . | . . . . Known Exits Taken . | . . . . Unknown Exits Taken 3 | 1 1 1 . Scrap Searched 2 | . . 1 1 Spaces Dug . | . . . . Terrain Destroyed 9 | . 9 . . Melee . | . . . . Projectile . | . . . . AOE 9 | . 9 . . Terrain Rammed . | . . . . Walls Destroyed . | . . . . Machines Disabled . | . . . . Actions | -11 -10 -10 -10 --------- Run | Yrd Mat Min Sub Total 1365 | 61 280 306 718 Wait 12 | . . 12 . Move 1274 | 54 252 257 711 Hop . | . . . . Pick Up 8 | 2 3 1 2 Fast Attach 13 | 5 4 4 . Attach 4 | . 1 3 . Detach 1 | . 1 . . Swap 7 | . 4 2 1 Drop 11 | . 7 3 1 Fire 34 | . 8 24 2 Melee . | . . . . Ram 1 | . . . 1 Kick . | . . . . Crush . | . . . . Escape Stasis . | . . . . Rewire . | . . . . Trap . | . . . . Miscellaneous . | . . . . Route ------- -11/Scrapyard -10/Materials -10/Mines -10/Subcaves History --------- Turn | Location | Event 36 | -11/Scrapyard | Discovered new exit (range 15) 54 | -11/Scrapyard | Entered Materials 209 | -10/Materials | Discovered new exit (range 10) 262 | -10/Materials | Entered Mines 316 | -10/Mines | Core integrity fell below 50% 403 | -10/Mines | A weapon hastily lodged in a ceiling crevice suddenly fell to the ground 491 | -10/Mines | Learned Materials trap positions 492 | -10/Mines | Discovered new exit (range 8) 520 | -10/Mines | Entered Subcaves 566 | -10/Subcaves | Visited Clippyterm 569 | -10/Subcaves | Learned Factory emergency access door positions 569 | -10/Subcaves | Learned Factory stockpile data 634 | -10/Subcaves | Build established: Mutant 853 | -10/Subcaves | Learned location of 1 exit from Materials 1039 | -10/Subcaves | Core integrity fell below 20% 1227 | -10/Subcaves | Destroyed by DZ-HNV(R) with Subdweller Machine Gun Last Messages --------------- Subatomizers dissect the Wheel. Acquired derelict log, extracted data. Data stored: Materials exits (x1). Triggered Piercing Trap. Spikes shoot up from the floor. Critical hit (Impale). Searching scrap... Found Mak. Spear. Found 56 Matter. Acquired Mak. Spear. Slammed into Q3-FHU(R). Wheel destroyed. Lgt. Ion Engine destroyed. Q3-FHU(R) destroyed. Subatomizers dissect the Sub. Machine Gun. Acquired 18 matter. Subatomizers dissect the Sub. Optics. Acquired Scrap Shield Fragment. Dropped Scrap Shield Fragment. Subatomizers dissect the Sub. Optics. Map ----- +----------------------------------------------------+ | ##???# #?????????????# ###? | | ##### ### #?????????????# #??? | | #?# #????????????## #??? | | ### #????????????# #??? | | # ### #????????????# ## ## | | #### ####????????????# ### #?# ## | | ???# ###????????????####?## #??###?? | | ???# ## #?????#####???????#& #??????? | | ???## ### ##?????# #########& ##??????? | | ????### ### ####??##### # &% *##???????? | | ?###??#### #?????# [!##????????? | | ?# ####### #?????# ##?????????? | | ## ##???## #### ##??????????? | | ## ##??# ###??###???????????? | | # ## #### ## ###??????????????????? | | #### ## ####????????????????????? | | ###??# ##?????????????????????? | | #????# #### ##????????????????????? | | #??# #### ##???????????????????? | | ???# ## ####????????????????? | | ???## ## #????????????????? | | ????## ## ## ##????????????????? | | ?????## ?# #### #?????????????????? | | ??????# ?## #### #?????????????????? | | ?????? #?##### ##?????????????????? | | ?????? ????# ## @ ##??????????????????? | | ?????? ???? #?### ##???????????????????? | | ??????## ?????# #????# #????????????????????? | | ??????????????###???? ##????????????????????? | | ???????????????????? #?????????????????????? | | ??????????????????# #?????????????????????? | | ?????????????????# ##?????????????????????? | | ???????????????? ##??????????????????????? | | ??????????????? ????????????????????????? | | ?????????????? ## ????????????????????????? | | ?????????????? ?## ????????????????????????? | | ??????????????R ???# ????????????????????????? | | ???????????????????? ????????????????????????? | | ????????????????????## ????????????????????????? | | ?????????????????????# ????????????????????????? | | ???????????????????????#?????????????????????????? | | ?????????????????????????????????????????????????? | | ?????????????????????????????????????????????????? | | ?????????????????????????????????????????????????? | | ?????????????????????????????????????????????????? | | ?????????????????????????????????????????????????? | | ?????????????????????????????????????????????????? | | ?????????????????????????????????????????????????? | | ?????????????????????????????????????????????????? | | ?????????????????????????????????????????????????? | +----------------------------------------------------+ Best States ------------- Heat Dissipation 25 Energy Generation 12 Energy Capacity 265 Matter Stores 300 Matter Capacity 300 Sight Range 16 Terrain Scan Density 85 Evasion (%) 62 Item Schematics ----------------- None Robot Schematics ------------------ None Fabricated ------------ Nothing Repaired ---------- Nothing Studied --------- None Alien Tech Used ----------------- None Achievements -------------- None Challenges ------------ None Game ------ Seed ReactiveHugeMaterializer Manual? 0 Play Time 00:15:39 Cumulative 11.5 hours Start 2026.07.16 @ 20:42:11 End 2026.07.16 @ 20:56:06 Sessions 1 Manual Loads 0 Difficulty Rogue Special Mode None Game No. 29 Rogue 29 Adventurer 0 Explorer 0 Win Type - Total 0 Types 0/0/0/0/0/0/0/0/0/0 Lore% 15 Gallery% 13 Achievement% 13 Wizard Run 0 Options --------- Layout 1 ASCII 0 Keyboard 1 Movement Arrows Keybinds 0 Fullscreen 1 Font 36/SmallcapsGlow++ Map View 53x45 Zoom Use 0% Tactical HUD 0 Map Filters NONE Filters NONE Steam 1 RUN: fefd35b5-c342-4d8a-9a2a-8749f18cad72